bitfinex/quotes_BTCUSD_20241022
["timestamp","ask_amount","ask_price","bid_price","bid_amount"]
[1729640341306,3.08090802,67493.0,67492.0,0.000826]
[1729640342586,2.99290908,67493.0,67492.0,0.000826]
[1729640343230,2.99456108,67493.0,67492.0,0.000826]
[1729640343472,3.08256002,67493.0,67492.0,0.000826]
[1729640343678,2.99456108,67493.0,67492.0,0.000826]
[1729640343892,3.08256002,67493.0,67492.0,0.000826]
[1729640344648,3.04248998,67493.0,67492.0,0.000826]
[1729640345083,3.13048892,67493.0,67492.0,0.000826]
[1729640346174,2.99456108,67493.0,67492.0,0.000826]
[1729640346409,3.10955976,67493.0,67492.0,0.000826]
[1729640346643,3.45157966,67493.0,67492.0,0.000826]
[1729640346881,0.27268107,67491.0,67490.0,0.000826]
[1729640347114,5.9108371,67491.0,67490.0,0.000826]
[1729640347343,6.24819312,67491.0,67490.0,0.000826]
[1729640347562,6.25019312,67491.0,67490.0,0.000826]
[1729640347805,6.26393545,67491.0,67490.0,0.000826]
[1729640349527,6.1684428,67491.0,67490.0,0.000826]
[1729640350403,6.15470047,67491.0,67490.0,0.000826]
[1729640350853,6.0365737,67491.0,67490.0,0.000826]
[1729640351050,6.16843605,67491.0,67490.0,0.000826]
[1729640351506,6.03657268,67491.0,67490.0,0.000826]
[1729640351938,6.0433845,67491.0,67490.0,0.000826]
[1729640354364,6.04337949,67491.0,67490.0,0.000826]
[1729640355470,6.04306186,67491.0,67490.0,0.000826]
[1729640356894,0.268536,67490.0,67489.0,0.00074496]
[1729640357009,5.8243744,67490.0,67489.0,0.00074496]
[1729640357466,5.93415281,67490.0,67489.0,0.00074496]
[1729640358362,5.8381143,67490.0,67489.0,0.00074496]
[1729640359036,6.06403626,67490.0,67489.0,0.00074496]
[1729640359291,5.95426137,67490.0,67489.0,0.00074496]
[1729640360215,5.95425481,67490.0,67489.0,0.00074496]
[1729640360661,5.94051491,67490.0,67489.0,0.00074496]
[1729640362789,5.93851491,67490.0,67489.0,0.00074496]
[1729640364275,5.95226315,67490.0,67489.0,0.00074496]
[1729640364938,5.95229896,67490.0,67489.0,0.00074496]
[1729640366222,6.18133364,67490.0,67489.0,0.00074496]
[1729640366457,0.128548,67483.0,67482.0,0.22203637]
[1729640366655,0.128555,67479.0,67478.0,0.1736]
[1729640366862,0.40740946,67479.0,67478.0,0.1736]
[1729640368188,0.40740946,67479.0,67478.0,0.174426]
[1729640368434,0.01374824,67479.0,67478.0,0.292983]
[1729640368893,0.0137542,67487.0,67486.0,0.118543]
[1729640369119,0.16271335,67487.0,67486.0,0.292143]
[1729640369570,0.16271335,67487.0,67486.0,0.1736]
[1729640370007,0.27886042,67487.0,67486.0,0.1736]
[1729640370224,0.40240142,67487.0,67486.0,0.1736]
[1729640370433,0.40740142,67487.0,67486.0,0.1736]
[1729640371981,0.441045,67487.0,67486.0,0.1736]
[1729640372424,0.49370597,67487.0,67486.0,0.1736]
[1729640372657,0.46006239,67487.0,67486.0,0.1736]
[1729640373571,0.46006494,67487.0,67486.0,0.1736]
[1729640373974,0.2912569,67487.0,67486.0,0.1736]
[1729640375761,5.3412569,67487.0,67486.0,0.0813]
[1729640375985,5.40257945,67487.0,67486.0,0.0813]
[1729640376216,5.4685556,67487.0,67486.0,0.0813]
[1729640376474,5.5650341,67487.0,67486.0,0.0813]
[1729640376677,5.61367181,67487.0,67486.0,0.0813]
[1729640377369,5.59173352,67487.0,67486.0,0.0813]
[1729640377532,5.49271155,67487.0,67486.0,0.0813]
[1729640377730,2.79773014,67487.0,67486.0,0.0813]
[1729640377941,0.76873014,67487.0,67486.0,0.0813]
[1729640378159,0.68071155,67487.0,67486.0,0.0813]
[1729640378379,0.54171922,67487.0,67486.0,0.0813]
[1729640378832,0.45371155,67487.0,67486.0,0.0813]
[1729640379037,0.45369894,67487.0,67486.0,0.0813]
[1729640379252,0.54170986,67487.0,67486.0,0.0813]
[1729640379465,0.35726728,67487.0,67486.0,0.082126]
[1729640379889,0.54171616,67487.0,67486.0,0.082126]
[1729640380098,0.45370156,67487.0,67486.0,0.082126]
[1729640380530,0.54171616,67487.0,67486.0,0.082126]
[1729640381041,0.54171609,67487.0,67486.0,0.082126]
[1729640381671,0.54172341,67487.0,67486.0,0.082126]
[1729640382550,0.45370881,67487.0,67486.0,0.082126]
[1729640383054,0.29125683,67487.0,67486.0,0.082126]
[1729640383284,0.54174254,67487.0,67486.0,0.082126]
[1729640383497,0.45372004,67487.0,67486.0,0.082126]
[1729640383930,0.54174134,67487.0,67486.0,0.082126]
[1729640384137,0.45372004,67487.0,67486.0,0.082126]
[1729640385221,0.56374761,67487.0,67486.0,0.082126]
[1729640385431,0.6311838,67487.0,67486.0,0.000826]
[1729640385856,0.52115623,67487.0,67486.0,0.000826]
[1729640386078,0.63118921,67487.0,67486.0,0.000826]
[1729640387151,0.63118974,67487.0,67486.0,0.000826]
[1729640387369,0.63118945,67487.0,67486.0,0.000826]
[1729640387591,0.52115623,67487.0,67486.0,0.000826]
[1729640388031,0.35869302,67487.0,67486.0,0.000826]
[1729640388265,0.34493634,67487.0,67486.0,0.000826]
[1729640388698,0.35869587,67487.0,67486.0,0.000826]
[1729640388876,0.3657604,67487.0,67486.0,0.000826]
[1729640389303,0.68415383,67487.0,67486.0,0.000826]
[1729640389708,0.57085763,67487.0,67486.0,0.000826]
[1729640389920,0.57760014,67487.0,67486.0,0.000826]
[1729640390598,0.4675551,67487.0,67486.0,0.000826]
[1729640391005,0.30506672,67487.0,67486.0,0.000826]
[1729640391673,0.46756294,67487.0,67486.0,0.000826]
[1729640391914,0.57510498,67487.0,67486.0,0.000826]
[1729640392558,0.57675698,67487.0,67486.0,0.000826]
[1729640392771,0.62261779,67487.0,67486.0,0.000826]
[1729640392988,0.57675698,67487.0,67486.0,0.000826]
[1729640394478,0.46921494,67487.0,67486.0,0.000826]
[1729640396180,0.30671872,67487.0,67486.0,0.000826]
[1729640396409,0.46924751,67487.0,67486.0,0.000826]
[1729640398679,0.51513018,67487.0,67486.0,0.000826]
[1729640399583,0.46924751,67487.0,67486.0,0.000826]
[1729640399921,0.45548798,67487.0,67486.0,0.000826]
[1729640400010,0.46926358,67487.0,67486.0,0.000826]
[1729640400234,0.51515037,67487.0,67486.0,0.000826]
[1729640400894,0.51517131,67487.0,67486.0,0.000826]
[1729640404458,0.51518372,67487.0,67486.0,0.000826]
[1729640405873,0.23094106,67487.0,67486.0,0.176426]
[1729640406109,0.23094106,67487.0,67486.0,0.40296557]
[1729640406110,0.110581,67487.0,67486.0,0.40296557]
[1729640406344,0.110581,67487.0,67486.0,0.28442257]
[1729640406345,0.02249213,67487.0,67486.0,0.28442257]
[1729640406581,0.27314314,67487.0,67486.0,0.176426]
[1729640406792,0.02249213,67487.0,67486.0,0.294969]
[1729640407008,0.02249213,67487.0,67486.0,0.176426]
[1729640407464,0.27315033,67487.0,67486.0,0.176426]
[1729640408385,0.18506645,67487.0,67486.0,0.176426]
[1729640409039,0.27315033,67487.0,67486.0,0.176426]
[1729640409522,0.51391179,67487.0,67486.0,0.176426]
[1729640409761,0.55981545,67487.0,67486.0,0.176426]
[1729640410482,0.55981545,67487.0,67486.0,0.000826]
[1729640410687,5.71781202,67487.0,67486.0,0.000826]
[1729640410925,5.94539902,67487.0,67486.0,0.000826]
[1729640411358,0.89539902,67487.0,67486.0,0.000826]
[1729640411587,5.71781202,67487.0,67486.0,0.000826]
[1729640411814,5.94539902,67487.0,67486.0,0.000826]
[1729640412042,5.84994803,67487.0,67486.0,0.000826]
[1729640412287,5.89409217,67487.0,67486.0,0.000826]
[1729640415583,5.90075691,67487.0,67486.0,0.000826]
[1729640417021,6.10745691,67487.0,67486.0,0.000826]
[1729640417222,6.25611376,67487.0,67486.0,0.000826]
[1729640417454,6.10745691,67487.0,67486.0,0.000826]
[1729640417683,6.40504239,67487.0,67486.0,0.000826]
[1729640418263,6.51504239,67487.0,67486.0,0.000826]
[1729640418772,6.36641606,67487.0,67486.0,0.000826]
[1729640418960,6.18771606,67487.0,67486.0,0.000826]
[1729640420570,6.17394046,67487.0,67486.0,0.000826]
[1729640420802,6.18769816,67487.0,67486.0,0.000826]
[1729640421009,6.18752464,67487.0,67486.0,0.000826]
[1729640421221,6.33610603,67487.0,67486.0,0.000826]
[1729640421439,6.18752464,67487.0,67486.0,0.000826]
[1729640423440,6.1874523,67487.0,67486.0,0.000826]
[1729640424084,6.1736946,67487.0,67486.0,0.000826]
[1729640424188,6.18744636,67487.0,67486.0,0.000826]
[1729640424426,6.33600018,67487.0,67486.0,0.000826]
[1729640424619,6.18744636,67487.0,67486.0,0.000826]
[1729640427447,6.18944636,67487.0,67486.0,0.000826]
[1729640428095,6.18925382,67487.0,67486.0,0.000826]
[1729640428322,6.1872665,67487.0,67486.0,0.000826]
[1729640429174,6.29526307,67487.0,67486.0,0.000826]
[1729640429719,6.1872665,67487.0,67486.0,0.000826]
[1729640430123,6.29526307,67487.0,67486.0,0.000826]
[1729640430325,6.1872665,67487.0,67486.0,0.000826]
[1729640430473,0.015,67481.0,67480.0,0.000826]
[1729640430676,5.76961683,67481.0,67480.0,0.000826]
[1729640430883,6.05749511,67481.0,67480.0,0.000826]
[1729640431317,6.04374335,67481.0,67480.0,0.000826]
[1729640431529,5.78221081,67481.0,67480.0,0.000826]
[1729640431736,5.82802018,67481.0,67480.0,0.000826]
[1729640432146,5.97697933,67481.0,67480.0,0.000826]
[1729640432823,5.97693303,67481.0,67480.0,0.000826]
[1729640435721,5.97893303,67481.0,67480.0,0.000826]
[1729640435985,6.11087804,67481.0,67480.0,0.000826]
[1729640436442,6.20618943,67481.0,67480.0,0.000826]
[1729640437560,6.26949286,67481.0,67480.0,0.000826]
[1729640437807,6.00083493,67481.0,67480.0,0.000826]
[1729640438056,0.59209898,67481.0,67480.0,0.000826]
[1729640438279,0.58616798,67481.0,67480.0,0.000826]
[1729640439625,0.59116798,67481.0,67480.0,0.000826]
[1729640440071,0.58616798,67481.0,67480.0,0.000826]
[1729640441199,0.79092782,67481.0,67480.0,0.000826]
[1729640441418,0.92782625,67481.0,67480.0,0.000826]
[1729640441656,0.79592782,67481.0,67480.0,0.000826]
[1729640441901,0.75012713,67481.0,67480.0,0.000826]
[1729640442112,5.80012713,67481.0,67480.0,0.000826]
[1729640442346,5.84587515,67481.0,67480.0,0.000826]
[1729640442569,5.92077254,67481.0,67480.0,0.000826]
[1729640442845,6.01808948,67481.0,67480.0,0.000826]
[1729640443263,6.01608948,67481.0,67480.0,0.000826]
[1729640443482,6.12408605,67481.0,67480.0,0.000826]
[1729640444419,6.14708605,67481.0,67480.0,0.000826]
[1729640446646,4.78008948,67481.0,67480.0,0.000826]
[1729640446882,3.8190539,67481.0,67480.0,0.000826]
[1729640447101,3.71105733,67481.0,67480.0,0.000826]
[1729640447831,2.94905733,67481.0,67480.0,0.000826]
[1729640448047,2.72187515,67481.0,67480.0,0.000826]
[1729640448735,0.641916,67481.0,67480.0,0.175826]
[1729640449226,0.631916,67481.0,67480.0,0.175826]
[1729640449440,0.531916,67481.0,67480.0,0.175826]
[1729640449659,0.63991257,67481.0,67480.0,0.175826]
[1729640451632,0.63992513,67481.0,67480.0,0.175826]
[1729640451843,5.73088771,67481.0,67480.0,0.000826]
[1729640452796,5.71714313,67481.0,67480.0,0.000826]
[1729640452956,5.73090089,67481.0,67480.0,0.000826]
[1729640453181,5.76090089,67481.0,67480.0,0.000826]
[1729640453398,5.75890089,67481.0,67480.0,0.000826]
[1729640454996,5.8908762,67481.0,67480.0,0.000826]
[1729640455255,5.75890089,67481.0,67480.0,0.000826]
[1729640455447,5.8908762,67481.0,67480.0,0.000826]
[1729640455722,5.98629434,67481.0,67480.0,0.000826]
[1729640456485,5.97253658,67481.0,67480.0,0.000826]
[1729640456627,5.98629367,67481.0,67480.0,0.000826]
[1729640457330,5.81429367,67481.0,67480.0,0.000826]
[1729640457789,5.74129367,67481.0,67480.0,0.000826]
[1729640458038,5.38829367,67481.0,67480.0,0.000826]
[1729640458730,5.23933452,67481.0,67480.0,0.000826]
[1729640458971,2.70526209,67481.0,67480.0,0.175826]
[1729640459208,2.65333109,67481.0,67480.0,0.175826]
[1729640459452,2.65333109,67481.0,67480.0,0.000826]
[1729640459687,2.80729024,67481.0,67480.0,0.000826]
[1729640459919,2.55033452,67481.0,67480.0,0.000826]
[1729640460164,2.65833349,67481.0,67480.0,0.000826]
[1729640461031,2.56298435,67481.0,67480.0,0.000826]
[1729640461290,2.65840403,67481.0,67480.0,0.000826]
[1729640462661,2.64464454,67481.0,67480.0,0.000826]
[1729640462893,2.59896825,67481.0,67480.0,0.000826]
[1729640463168,2.60396825,67481.0,67480.0,0.000826]
[1729640463406,2.4550091,67481.0,67480.0,0.000826]
[1729640463627,2.55044254,67481.0,67480.0,0.000826]
[1729640464348,2.55044254,67481.0,67478.0,0.000826]
[1729640464349,0.37655157,67479.0,67478.0,0.000826]
[1729640464560,5.7973849,67479.0,67478.0,0.000826]
[1729640464772,6.17384323,67479.0,67478.0,0.000826]
[1729640465690,6.17184323,67479.0,67478.0,0.000826]
[1729640466356,6.17383499,67479.0,67478.0,0.000826]
[1729640466813,6.18163034,67479.0,67478.0,0.000826]
[1729640467351,0.95220526,67479.0,67478.0,0.173226]
[1729640467571,0.50720999,67479.0,67478.0,0.173226]
[1729640467804,0.63923981,67479.0,67478.0,0.173226]
[1729640468040,0.50720999,67479.0,67478.0,0.173226]
[1729640468290,0.63923981,67479.0,67478.0,0.173226]
[1729640468737,0.76503479,67479.0,67478.0,0.173226]
[1729640469412,0.5871638,67479.0,67478.0,0.173226]
[1729640469926,0.57341266,67479.0,67478.0,0.173226]
[1729640470092,0.69720043,67479.0,67478.0,0.173226]
[1729640470551,0.69719203,67479.0,67478.0,0.173226]
[1729640470797,0.54939434,67479.0,67478.0,0.173226]
[1729640471271,0.50720927,67479.0,67478.0,0.173226]
[1729640471488,0.46137065,67479.0,67478.0,0.173226]
[1729640472451,0.72923922,67479.0,67478.0,0.000826]
[1729640472672,5.4675187,67479.0,67478.0,0.000826]
[1729640472926,5.51260002,67479.0,67478.0,0.000826]
[1729640473652,5.51263297,67479.0,67478.0,0.000826]
[1729640474103,5.66112026,67479.0,67478.0,0.000826]
[1729640474321,0.37455457,67477.0,67476.0,0.000838]
[1729640474552,5.79550687,67477.0,67476.0,0.000838]
[1729640474766,6.03067286,67477.0,67476.0,0.000838]
[1729640475014,6.32809967,67477.0,67476.0,0.000838]
[1729640475458,6.17963201,67477.0,67476.0,0.000838]
[1729640477033,6.16587904,67477.0,67476.0,0.000838]
[1729640477246,6.17962056,67477.0,67476.0,0.000838]
[1729640477465,0.78746147,67477.0,67476.0,0.173238]
[1729640477690,0.29905349,67477.0,67476.0,0.173238]
[1729640477919,0.46143197,67477.0,67476.0,0.173238]
[1729640478366,0.46143058,67477.0,67476.0,0.173238]
[1729640479089,0.50724533,67477.0,67476.0,0.173238]
[1729640479311,0.46143058,67477.0,67476.0,0.173238]
[1729640479945,0.50724865,67477.0,67476.0,0.173238]
[1729640480188,0.57140722,67477.0,67476.0,0.173238]
[1729640480420,0.71303019,67477.0,67476.0,0.173238]
[1729640480623,0.60305355,67477.0,67476.0,0.173238]
[1729640480936,0.28531197,67477.0,67476.0,0.173238]
[1729640481067,0.29905633,67477.0,67476.0,0.173238]
[1729640481277,0.44769981,67477.0,67476.0,0.173238]
[1729640481721,0.53568271,67477.0,67476.0,0.173238]
[1729640481947,0.55767645,67477.0,67476.0,0.173238]
[1729640482490,0.46144387,67477.0,67476.0,0.173238]
[1729640482661,0.44769981,67477.0,67476.0,0.173238]
[1729640483087,0.53567101,67477.0,67476.0,0.173238]
[1729640483312,0.44769309,67477.0,67476.0,0.173238]
[1729640483534,0.53567687,67477.0,67476.0,0.173238]
[1729640483762,0.44769895,67477.0,67476.0,0.173238]
[1729640484362,0.49351238,67477.0,67476.0,0.173238]
[1729640484835,0.55767489,67477.0,67476.0,0.173238]
[1729640485498,0.44769895,67477.0,67476.0,0.173238]
[1729640486132,0.53568362,67477.0,67476.0,0.173238]
[1729640487023,0.44769895,67477.0,67476.0,0.173238]
[1729640487480,0.55767868,67477.0,67476.0,0.173238]
[1729640487917,0.53568368,67477.0,67476.0,0.173238]
[1729640488134,0.44770036,67477.0,67476.0,0.173238]
[1729640488750,0.55767768,67477.0,67476.0,0.173238]
[1729640489438,0.44770036,67477.0,67476.0,0.173238]
[1729640490360,0.55767729,67477.0,67476.0,0.173238]
[1729640490804,0.55768776,67477.0,67476.0,0.173238]
[1729640491024,0.81869588,67477.0,67476.0,0.173238]
[1729640491394,2.34645365,67477.0,67476.0,0.000838]
[1729640491483,2.44182134,67477.0,67476.0,0.000838]
[1729640491688,2.44181934,67477.0,67476.0,0.000838]
[1729640492540,2.44180468,67477.0,67476.0,0.000838]
[1729640495464,2.30658817,67477.0,67476.0,0.000838]
[1729640495911,2.31347192,67477.0,67476.0,0.000838]
[1729640497487,2.31343395,67477.0,67476.0,0.000838]
[1729640498620,5.79643395,67477.0,67476.0,0.000838]
[1729640498839,3.82743395,67477.0,67476.0,0.000838]
[1729640499522,3.9763931,67477.0,67476.0,0.000838]
[1729640500406,3.88102737,67477.0,67476.0,0.000838]
[1729640501038,4.1083143,67477.0,67476.0,0.000838]
[1729640501264,3.97636815,67477.0,67476.0,0.000838]
[1729640501476,4.10830814,67477.0,67476.0,0.000838]
[1729640501884,3.88102121,67477.0,67476.0,0.000838]
[1729640503070,4.10830556,67477.0,67476.0,0.000838]
[1729640503286,3.97636557,67477.0,67476.0,0.000838]
[1729640503508,3.8672804,67477.0,67476.0,0.000838]
[1729640503742,4.10831079,67477.0,67476.0,0.000838]
[1729640504029,4.09456337,67477.0,67476.0,0.000838]
[1729640504239,3.82740975,67477.0,67476.0,0.000838]
[1729640504474,3.95935021,67477.0,67476.0,0.000838]
[1729640504688,3.73206724,67477.0,67476.0,0.000838]
[1729640505838,3.82717357,67477.0,67476.0,0.000838]
[1729640506528,1.93728982,67477.0,67476.0,0.182738]
[1729640506765,1.71024303,67477.0,67476.0,0.182738]
[1729640506982,1.66423104,67477.0,67476.0,0.182738]
[1729640507195,1.41323104,67477.0,67476.0,0.182738]
[1729640507469,1.11523104,67477.0,67476.0,0.182738]
[1729640507658,1.11521918,67477.0,67476.0,0.182738]
[1729640507869,0.46121918,67477.0,67476.0,0.182738]
[1729640508325,0.57103613,67477.0,67476.0,0.182738]
[1729640508752,0.5710338,67477.0,67476.0,0.182738]
[1729640511662,0.5711057,67477.0,67476.0,0.182738]
[1729640511848,0.29904746,67477.0,67476.0,0.182738]
[1729640515027,0.57115029,67477.0,67476.0,0.182738]
[1729640515237,0.5574148,67477.0,67476.0,0.182738]
[1729640515447,0.57115376,67477.0,67476.0,0.182738]
[1729640520679,0.46128259,67477.0,67476.0,0.182738]
[1729640522509,0.46135304,67477.0,67476.0,0.182738]
[1729640524526,0.57126755,67477.0,67476.0,0.182738]
[1729640527302,0.57126671,67477.0,67476.0,0.182738]
[1729640528201,0.44270871,67477.0,67476.0,0.182738]
[1729640528427,0.06549932,67477.0,67476.0,0.301298]
[1729640528679,0.02153378,67477.0,67476.0,0.301298]
[1729640529363,0.01373896,67477.0,67476.0,0.301298]
[1729640529575,0.02254771,67477.0,67476.0,0.301298]
[1729640530968,0.02254771,67477.0,67476.0,0.30426156]
[1729640531180,0.00880875,67477.0,67476.0,0.30426156]
[1729640531398,0.001652,67478.0,67477.0,0.291758]
[1729640532480,0.01046328,67478.0,67477.0,0.291758]
[1729640532698,0.001652,67478.0,67477.0,0.291758]
[1729640532913,0.01046328,67478.0,67477.0,0.291758]
[1729640533135,0.001652,67478.0,67477.0,0.291758]
[1729640533352,0.01046328,67478.0,67477.0,0.291758]
[1729640533562,0.001652,67478.0,67477.0,0.291758]
[1729640533808,0.001652,67478.0,67477.0,0.39975457]
[1729640534624,0.001652,67478.0,67477.0,0.1732]
[1729640535305,0.15942243,67478.0,67477.0,0.1732]
[1729640535549,0.15942243,67478.0,67476.0,0.000838]
[1729640535550,0.123558,67477.0,67476.0,0.000838]
[1729640535789,0.28624015,67477.0,67476.0,0.000838]
[1729640536267,0.29506509,67477.0,67476.0,0.000838]
[1729640536676,0.28134209,67477.0,67476.0,0.000838]
[1729640536909,0.28634209,67477.0,67476.0,0.000838]
[1729640550391,0.33023804,67477.0,67476.0,0.000838]
[1729640550822,0.28634209,67477.0,67476.0,0.000838]
[1729640551287,0.35218601,67477.0,67476.0,0.000838]
[1729640551765,0.28634209,67477.0,67476.0,0.000838]
[1729640552176,0.35218601,67477.0,67476.0,0.000838]
[1729640552835,0.28634209,67477.0,67476.0,0.000838]
[1729640553261,0.33028013,67477.0,67476.0,0.000838]
[1729640553479,0.28634209,67477.0,67476.0,0.000838]
[1729640556830,0.30007419,67477.0,67476.0,0.000838]
[1729640559114,0.36598801,67477.0,67476.0,0.000838]
[1729640560438,0.30007419,67477.0,67476.0,0.000838]
[1729640560897,0.36598801,67477.0,67476.0,0.000838]
[1729640562004,0.30007419,67477.0,67476.0,0.000838]
[1729640562222,0.36598801,67477.0,67476.0,0.000838]
[1729640562799,0.35225591,67477.0,67476.0,0.000838]
[1729640562935,0.36599557,67477.0,67476.0,0.000838]
[1729640566404,0.36601401,67477.0,67476.0,0.000838]
[1729640567576,0.30010019,67477.0,67476.0,0.000838]
[1729640569054,0.36603249,67477.0,67476.0,0.000838]
[1729640570139,0.36603323,67477.0,67476.0,0.000838]
[1729640577428,0.46242144,67477.0,67476.0,0.000838]
[1729640578503,0.55030653,67477.0,67476.0,0.000838]
[1729640579612,0.46249408,67477.0,67476.0,0.000838]
[1729640580485,0.57247463,67477.0,67476.0,0.000838]
[1729640580968,0.55871579,67477.0,67476.0,0.000838]
[1729640581192,0.57247476,67477.0,67476.0,0.000838]
[1729640581408,0.46249421,67477.0,67476.0,0.000838]
[1729640583043,0.46263428,67477.0,67476.0,0.000838]
[1729640583242,5.78932787,67477.0,67476.0,0.000838]
[1729640583556,6.01687439,67477.0,67476.0,0.000838]
[1729640583712,6.01686711,67477.0,67476.0,0.000838]
[1729640586672,5.89903267,67477.0,67476.0,0.000838]
[1729640587675,5.89857718,67477.0,67476.0,0.000838]
[1729640591366,5.8985617,67477.0,67476.0,0.000838]
[1729640591586,6.03045404,67477.0,67476.0,0.000838]
[1729640592026,5.8985617,67477.0,67476.0,0.000838]
[1729640592694,6.03051685,67477.0,67476.0,0.000838]
[1729640593622,5.80323604,67477.0,67476.0,0.000838]
[1729640594796,5.87832237,67477.0,67476.0,0.000838]
[1729640596578,5.74636722,67477.0,67476.0,0.000838]
[1729640596796,5.87832237,67477.0,67476.0,0.000838]
[1729640597252,5.87826149,67477.0,67476.0,0.000838]
[1729640597482,5.74634406,67477.0,67476.0,0.000838]
[1729640601530,5.67125773,67477.0,67476.0,0.000838]
[1729640601753,5.65752152,67477.0,67476.0,0.000838]
[1729640601996,5.77126194,67477.0,67476.0,0.000838]
[1729640602225,5.77126172,67477.0,67476.0,0.000838]
[1729640605557,5.77126571,67477.0,67476.0,0.000838]
[1729640605703,6.05214229,67477.0,67476.0,0.000838]
[1729640606123,5.92022486,67477.0,67476.0,0.000838]
[1729640606817,5.92021124,67477.0,67476.0,0.000838]
[1729640607253,5.77125209,67477.0,67476.0,0.000838]
[1729640609478,0.72125209,67477.0,67476.0,0.000838]
[1729640609701,5.77125209,67477.0,67476.0,0.000838]
[1729640610173,5.7575079,67477.0,67476.0,0.000838]
[1729640612483,5.77126554,67477.0,67476.0,0.000838]
[1729640612929,5.7575079,67477.0,67476.0,0.000838]
[1729640613418,5.88941427,67477.0,67476.0,0.000838]
[1729640615698,5.88941427,67477.0,67476.0,0.00039613]
[1729640616377,5.90318948,67477.0,67476.0,0.00039613]
[1729640618443,6.13065947,67477.0,67476.0,0.00039613]
[1729640618671,6.13065926,67477.0,67476.0,0.00039613]
[1729640619111,5.90318948,67477.0,67476.0,0.00039613]
[1729640619404,6.13065936,67477.0,67476.0,0.00039613]
[1729640619576,5.99875299,67477.0,67476.0,0.00039613]
[1729640621344,6.06841097,67477.0,67476.0,0.00039613]
[1729640621598,5.95041097,67477.0,67476.0,0.00039613]
[1729640621851,5.95041097,67477.0,67476.0,0.0002535]
[1729640622974,5.88098487,67477.0,67476.0,0.0002535]
[1729640623194,0.94898487,67477.0,67476.0,0.0002535]
[1729640623397,5.77147991,67477.0,67476.0,0.0002535]
[1729640623619,5.99898487,67477.0,67476.0,0.0002535]
[1729640624998,5.99898511,67477.0,67476.0,0.0002535]
[1729640625211,6.14794426,67477.0,67476.0,0.0002535]
[1729640626170,6.14819957,67477.0,67476.0,0.0002535]
[1729640628614,6.1344242,67477.0,67476.0,0.0002535]
[1729640628832,6.14819913,67477.0,67476.0,0.0002535]
[1729640629101,6.14819909,67477.0,67476.0,0.0002535]
[1729640629488,5.99923994,67477.0,67476.0,0.0002535]
[1729640635187,5.99948815,67477.0,67476.0,0.0002535]
[1729640635834,5.99948688,67477.0,67476.0,0.0002535]
[1729640636135,6.14825332,67477.0,67476.0,0.0002535]
[1729640636488,5.99948732,67477.0,67476.0,0.0002535]
[1729640636705,6.05536758,67477.0,67476.0,0.0002535]
[1729640637909,6.20413358,67477.0,67476.0,0.0002535]
[1729640638138,6.05536758,67477.0,67476.0,0.0002535]
[1729640638562,6.20413358,67477.0,67476.0,0.0002535]
[1729640639789,6.19035825,67477.0,67476.0,0.0002535]
[1729640639944,6.20413381,67477.0,67476.0,0.0002535]
[1729640640165,6.05536781,67477.0,67476.0,0.0002535]
[1729640642437,5.27802324,67477.0,67476.0,0.0002535]
[1729640642645,4.93701981,67477.0,67476.0,0.0002535]
[1729640642856,4.88113955,67477.0,67476.0,0.0002535]
[1729640643944,4.88112495,67477.0,67476.0,0.0002535]
[1729640651423,0.95112495,67477.0,67476.0,0.0002535]
[1729640651672,5.77333553,67477.0,67476.0,0.0002535]
[1729640651888,6.00112495,67477.0,67476.0,0.0002535]
[1729640652758,6.00111881,67477.0,67476.0,0.0002535]
[1729640653482,6.15007786,67477.0,67476.0,0.0002535]
[1729640653698,6.15001887,67477.0,67476.0,0.0002535]
[1729640657238,6.15001875,67477.0,67476.0,0.0002535]
[1729640657735,6.15001875,67477.0,67473.0,0.00053074]
[1729640657736,0.025,67474.0,67473.0,0.00053074]
[1729640657983,0.025,67474.0,67460.0,0.22203637]
[1729640657984,0.128587,67461.0,67460.0,0.22203637]
[1729640658171,5.47482324,67461.0,67460.0,0.20716079]
[1729640658439,0.123588,67460.0,67459.0,0.0962]
[1729640658672,0.58108506,67460.0,67459.0,0.0962]
[1729640658897,0.47934839,67460.0,67459.0,0.0962]
[1729640659355,0.56738272,67460.0,67459.0,0.0962]
[1729640659582,0.67537929,67460.0,67459.0,0.0962]
[1729640659800,0.60109917,67460.0,67459.0,0.0962]
[1729640660240,0.68913218,67460.0,67459.0,0.0962]
[1729640660689,0.67537797,67460.0,67459.0,0.0962]
[1729640661033,0.63959707,67460.0,67459.0,0.0962]
[1729640661145,0.67534764,67460.0,67459.0,0.0962]
[1729640661365,0.58731463,67460.0,67459.0,0.0962]
[1729640661586,0.68034764,67460.0,67459.0,0.0962]
[1729640661828,0.59231463,67460.0,67459.0,0.0962]
[1729640662276,0.68030129,67460.0,67459.0,0.0962]
[1729640662944,0.12859,67459.0,67458.0,0.077]
[1729640663181,0.56367627,67459.0,67458.0,0.077]
[1729640663425,0.57201726,67459.0,67458.0,0.077]
[1729640663870,0.29964036,67459.0,67458.0,0.077]
[1729640664088,0.4620006,67459.0,67458.0,0.077]
[1729640664330,0.28589014,67459.0,67458.0,0.077]
[1729640664593,0.29962915,67459.0,67458.0,0.077]
[1729640664810,0.32160833,67459.0,67458.0,0.077]
[1729640665272,0.38756779,67459.0,67458.0,0.077]
[1729640665502,0.128592,67458.0,67457.0,0.0178172]
[1729640665730,5.42922677,67458.0,67457.0,0.0178172]
[1729640666176,5.43756776,67458.0,67457.0,0.0178172]
[1729640666390,5.37161033,67458.0,67457.0,0.0178172]
[1729640666610,5.43756776,67458.0,67457.0,0.0178172]
[1729640666845,5.60658687,67458.0,67457.0,0.01302667]
[1729640667082,5.66093686,67458.0,67457.0,0.01302667]
[1729640667306,5.85689814,67458.0,67457.0,0.01302667]
[1729640667529,5.96189814,67458.0,67457.0,0.01302667]
[1729640667748,5.89592441,67458.0,67457.0,0.01302667]
[1729640668080,5.86020533,67458.0,67457.0,0.01302667]
[1729640668197,5.89592332,67458.0,67457.0,0.01302667]
[1729640668464,6.0058797,67458.0,67457.0,0.01302667]
[1729640668680,6.0058797,67458.0,67449.0,0.077]
[1729640668681,0.133606,67450.0,67449.0,0.077]
[1729640668913,0.123611,67447.0,67446.0,0.0962]
[1729640669132,0.29130784,67447.0,67446.0,0.0962]
[1729640669386,0.29960918,67447.0,67446.0,0.0962]
[1729640671882,0.34284368,67447.0,67446.0,0.0962]